[Event "*** Qualifier 1: Titled Tuesday 3|2 Blitz"]
[Site "Chess.com"]
[Date "2017.04.04"]
[Round "7"]
[White "platy3"]
[Black "Keranke"]
[Result "1-0"]
[WhiteElo "2642"]
[BlackElo "2706"]
[TimeControl "180+2"]
[EndTime "14:43:09 PDT"]
[Termination "platy3 won by resignation"]

1. e4 {[%clk 0:03:02]} 1... g6 {[%clk 0:03:01.1]} 2. d4 {[%clk 0:03:02.3]} 2...
Bg7 {[%clk 0:03:02.4]} 3. Nc3 {[%clk 0:03:03.6]} 3... d6 {[%clk 0:03:03.8]} 4.
Be3 {[%clk 0:03:02.9]} 4... a6 {[%clk 0:03:05]} 5. h4 {[%clk 0:03:01.8]} 5... h6
{[%clk 0:03:05.1]} 6. Qd2 {[%clk 0:03:00.1]} 6... b5 {[%clk 0:03:06.1]} 7. f3
{[%clk 0:03:00.7]} 7... Nd7 {[%clk 0:03:05.7]} 8. O-O-O {[%clk 0:02:58.8]} 8...
Bb7 {[%clk 0:03:06.7]} 9. g4 {[%clk 0:02:56.7]} 9... Rc8 {[%clk 0:03:06]} 10. h5
{[%clk 0:02:47.9]} 10... g5 {[%clk 0:03:06.8]} 11. Nge2 {[%clk 0:02:48.9]} 11...
c5 {[%clk 0:03:07.4]} 12. Ng3 {[%clk 0:02:49]} 12... cxd4 {[%clk 0:02:45.3]} 13.
Bxd4 {[%clk 0:02:49.8]} 13... Bxd4 {[%clk 0:02:42.6]} 14. Qxd4 {[%clk
0:02:50.3]} 14... Ngf6 {[%clk 0:02:39]} 15. Nf5 {[%clk 0:02:44]} 15... Qb6
{[%clk 0:02:31.3]} 16. Qd2 {[%clk 0:02:24.1]} 16... Ne5 {[%clk 0:02:30.6]} 17.
Be2 {[%clk 0:02:23.7]} 17... b4 {[%clk 0:02:29.9]} 18. Na4 {[%clk 0:02:03.3]}
18... Qc7 {[%clk 0:02:07.1]} 19. Kb1 {[%clk 0:02:00.9]} 19... a5 {[%clk
0:01:44.7]} 20. b3 {[%clk 0:01:50]} 20... Bc6 {[%clk 0:01:37.9]} 21. Nb2 {[%clk
0:01:50.7]} 21... Bd7 {[%clk 0:01:27.6]} 22. Nc4 {[%clk 0:01:14.3]} 22... Bxf5
{[%clk 0:01:09.5]} 23. exf5 {[%clk 0:01:11.3]} 23... d5 {[%clk 0:00:38.2]} 24.
Nxe5 {[%clk 0:01:05.6]} 24... Qxe5 {[%clk 0:00:40.1]} 25. Bb5+ {[%clk
0:01:07.2]} 25... Kf8 {[%clk 0:00:40.9]} 26. Rhe1 {[%clk 0:01:07.3]} 26... Qd6
{[%clk 0:00:38.6]} 27. Qe3 {[%clk 0:01:05.6]} 27... Rc7 {[%clk 0:00:36.7]} 28.
Qd4 {[%clk 0:00:47.6]} 28... Kg7 {[%clk 0:00:33.1]} 29. Re2 {[%clk 0:00:48.1]}
29... Rhc8 {[%clk 0:00:33.5]} 30. Rde1 {[%clk 0:00:46.7]} 30... Kf8 {[%clk
0:00:31.6]} 31. Bd3 {[%clk 0:00:44.5]} 31... Ra8 {[%clk 0:00:26.1]} 32. Bb5
{[%clk 0:00:35.4]} 32... Rb8 {[%clk 0:00:26.5]} 33. Bd3 {[%clk 0:00:36.2]} 33...
Rbb7 {[%clk 0:00:23.1]} 34. Re5 {[%clk 0:00:36.3]} 34... Qc5 {[%clk 0:00:19.6]}
35. Qxc5 {[%clk 0:00:28.2]} 35... Rxc5 {[%clk 0:00:21.5]} 36. Kb2 {[%clk
0:00:25.3]} 36... Rbc7 {[%clk 0:00:22.6]} 37. a3 {[%clk 0:00:24.7]} 37... Ne8
{[%clk 0:00:17.4]} 38. axb4 {[%clk 0:00:25.5]} 38... axb4 {[%clk 0:00:19.3]} 39.
Ra1 {[%clk 0:00:26.4]} 39... Nd6 {[%clk 0:00:19.7]} 40. Ra4 {[%clk 0:00:24.6]}
40... Rb7 {[%clk 0:00:20.9]} 41. Ra8+ {[%clk 0:00:20.9]} 41... Kg7 {[%clk
0:00:22.2]} 42. Re1 {[%clk 0:00:13.8]} 42... Rcc7 {[%clk 0:00:21.9]} 43. Ra5
{[%clk 0:00:13.7]} 43... Ra7 {[%clk 0:00:18.3]} 44. Rxd5 {[%clk 0:00:10.9]}
44... Ra3 {[%clk 0:00:19.4]} 45. Ra1 {[%clk 0:00:11.7]} 45... Rxa1 {[%clk
0:00:18.4]} 46. Kxa1 {[%clk 0:00:13]} 46... Kf6 {[%clk 0:00:20]} 47. Kb2 {[%clk
0:00:11.5]} 47... Nc8 {[%clk 0:00:17.1]} 48. Rb5 {[%clk 0:00:11.6]} 48... Nd6
{[%clk 0:00:14.9]} 49. Rxb4 {[%clk 0:00:12.5]} 49... Ke5 {[%clk 0:00:16.8]} 50.
Kc1 {[%clk 0:00:12.5]} 50... e6 {[%clk 0:00:16]} 51. fxe6 {[%clk 0:00:11]} 51...
fxe6 {[%clk 0:00:17.9]} 52. Kd2 {[%clk 0:00:12.4]} 52... Rf7 {[%clk 0:00:17.9]}
53. Ke2 {[%clk 0:00:13.7]} 53... Ra7 {[%clk 0:00:19.5]} 54. Ra4 {[%clk
0:00:13.9]} 54... Rc7 {[%clk 0:00:19.9]} 55. Ra5+ {[%clk 0:00:14.8]} 55... Kf4
{[%clk 0:00:20.5]} 56. b4 {[%clk 0:00:12.2]} 56... Nf7 {[%clk 0:00:18.8]} 57. b5
{[%clk 0:00:11.6]} 57... Ne5 {[%clk 0:00:16.7]} 58. Ra4+ {[%clk 0:00:12.7]}
58... Kg3 {[%clk 0:00:17.7]} 59. Be4 {[%clk 0:00:14.3]} 59... Nc4 {[%clk
0:00:13.6]} 60. Rb4 {[%clk 0:00:13.2]} 60... Nb6 {[%clk 0:00:14.5]} 61. Bc6
{[%clk 0:00:12.5]} 61... Ra7 {[%clk 0:00:13.9]} 62. c4 {[%clk 0:00:12.6]} 62...
Ra2+ {[%clk 0:00:13.2]} 63. Kd3 {[%clk 0:00:13.7]} 63... Na4 {[%clk 0:00:07.9]}
64. b6 {[%clk 0:00:09.1]} 64... Nc5+ {[%clk 0:00:08.4]} 65. Kd4 {[%clk
0:00:09.4]} 65... Na6 {[%clk 0:00:10.1]} 66. Ra4 {[%clk 0:00:09.8]} 66... Rd2+
{[%clk 0:00:11.2]} 67. Kc3 {[%clk 0:00:10.9]} 67... Rd6 {[%clk 0:00:06.6]} 68.
Rxa6 {[%clk 0:00:11.9]} 68... Rxc6 {[%clk 0:00:07.6]} 69. b7 {[%clk 0:00:10.7]}
69... Rxa6 {[%clk 0:00:08.8]} 70. b8=Q+ {[%clk 0:00:12.2]} 70... Kh3 {[%clk
0:00:10.1]} 71. Qb7 {[%clk 0:00:11.2]} 71... Ra3+ {[%clk 0:00:11.1]} 72. Kb4
{[%clk 0:00:12.2]} 72... Ra1 {[%clk 0:00:12.1]} 73. Qe4 {[%clk 0:00:11.4]} 73...
e5 {[%clk 0:00:12.8]} 74. c5 {[%clk 0:00:11.3]} 1-0

[Event "*** Qualifier 1: Titled Tuesday 3|2 Blitz"]
[Site "Chess.com"]
[Date "2017.04.04"]
[Round "8"]
[White "aNaartjieZA"]
[Black "stepanosinovsky"]
[Result "0-1"]
[WhiteElo "2264"]
[BlackElo "2212"]
[TimeControl "180+2"]
[EndTime "14:45:19 PDT"]
[Termination "stepanosinovsky won by resignation"]

1. e4 {[%clk 0:03:00.6]} 1... e5 {[%clk 0:02:56.5]} 2. Nf3 {[%clk 0:03:01.1]}
2... Nc6 {[%clk 0:02:53]} 3. Bb5 {[%clk 0:03:01.9]} 3... a6 {[%clk 0:02:53.7]}
4. Ba4 {[%clk 0:03:02.6]} 4... Nf6 {[%clk 0:02:54.5]} 5. O-O {[%clk 0:03:03.2]}
5... Be7 {[%clk 0:02:56]} 6. Re1 {[%clk 0:03:03.5]} 6... b5 {[%clk 0:02:57.3]}
7. Bb3 {[%clk 0:03:04.6]} 7... O-O {[%clk 0:02:59]} 8. h3 {[%clk 0:03:02.7]}
8... Bb7 {[%clk 0:02:57.2]} 9. c3 {[%clk 0:03:03.3]} 9... d5 {[%clk 0:02:56.7]}
10. exd5 {[%clk 0:03:03.8]} 10... Nxd5 {[%clk 0:02:57.3]} 11. Nxe5 {[%clk
0:03:04.6]} 11... Nxe5 {[%clk 0:02:58.5]} 12. Rxe5 {[%clk 0:03:05.4]} 12... Nf4
{[%clk 0:03:00]} 13. f3 {[%clk 0:02:59.8]} 13... Bd6 {[%clk 0:02:58]} 14. Re1
{[%clk 0:02:55.6]} 14... Qg5 {[%clk 0:02:35.9]} 0-1

[Event "*** Qualifier 1: Titled Tuesday 3|2 Blitz"]
[Site "Chess.com"]
[Date "2017.04.04"]
[Round "8"]
[White "Keranke"]
[Black "AlexanderL"]
[Result "0-1"]
[WhiteElo "2695"]
[BlackElo "2588"]
[TimeControl "180+2"]
[EndTime "14:46:38 PDT"]
[Termination "AlexanderL won by resignation"]

1. e4 {[%clk 0:03:02]} 1... e6 {[%clk 0:02:56.2]} 2. d3 {[%clk 0:03:02.9]} 2...
c5 {[%clk 0:02:55.4]} 3. Nd2 {[%clk 0:03:03.8]} 3... Nc6 {[%clk 0:02:56]} 4. g3
{[%clk 0:03:04.7]} 4... g6 {[%clk 0:02:56.9]} 5. Bg2 {[%clk 0:03:06.2]} 5... Bg7
{[%clk 0:02:58.2]} 6. Ngf3 {[%clk 0:03:07.7]} 6... d6 {[%clk 0:02:59.1]} 7. O-O
{[%clk 0:03:09.6]} 7... Nge7 {[%clk 0:02:59.9]} 8. Nh4 {[%clk 0:03:11.1]} 8...
O-O {[%clk 0:03:00.1]} 9. f4 {[%clk 0:03:12.7]} 9... f5 {[%clk 0:03:01.1]} 10.
Kh1 {[%clk 0:03:13.6]} 10... Rb8 {[%clk 0:02:59.2]} 11. c3 {[%clk 0:03:13.7]}
11... b5 {[%clk 0:02:57.7]} 12. Ndf3 {[%clk 0:03:14.1]} 12... b4 {[%clk
0:02:54.4]} 13. Bd2 {[%clk 0:03:15]} 13... Kh8 {[%clk 0:02:52.2]} 14. Qc2 {[%clk
0:03:12.9]} 14... a5 {[%clk 0:02:52.2]} 15. Rfe1 {[%clk 0:03:11.3]} 15... h6
{[%clk 0:02:52.3]} 16. Rad1 {[%clk 0:03:11.1]} 16... Bd7 {[%clk 0:02:51.1]} 17.
Be3 {[%clk 0:03:07.6]} 17... Rc8 {[%clk 0:02:44.6]} 18. Qd2 {[%clk 0:03:02.7]}
18... a4 {[%clk 0:02:43.8]} 19. d4 {[%clk 0:02:57.2]} 19... fxe4 {[%clk
0:02:42.3]} 20. Ng1 {[%clk 0:02:53]} 20... bxc3 {[%clk 0:02:42.7]} 21. bxc3
{[%clk 0:02:53.8]} 21... cxd4 {[%clk 0:02:44.1]} 22. cxd4 {[%clk 0:02:43]} 22...
d5 {[%clk 0:02:45]} 23. f5 {[%clk 0:02:44.5]} 23... g5 {[%clk 0:02:37.3]} 24.
Bxg5 {[%clk 0:02:33.4]} 24... hxg5 {[%clk 0:02:37.4]} 25. Qxg5 {[%clk
0:02:35.3]} 25... Nxf5 {[%clk 0:02:37.4]} 26. Qh5+ {[%clk 0:02:30.1]} 26... Kg8
{[%clk 0:02:38.4]} 27. Ng6 {[%clk 0:02:30.3]} 27... Be8 {[%clk 0:02:34.8]} 0-1

[Event "*** Qualifier 1: Titled Tuesday 3|2 Blitz"]
[Site "Chess.com"]
[Date "2017.04.04"]
[Round "8"]
[White "ecwinslow"]
[Black "SmoothAsAHedgehog"]
[Result "0-1"]
[WhiteElo "2090"]
[BlackElo "2525"]
[TimeControl "180+2"]
[EndTime "14:47:27 PDT"]
[Termination "SmoothAsAHedgehog won by resignation"]

1. d4 {[%clk 0:03:02]} 1... Nf6 {[%clk 0:03:00.9]} 2. c4 {[%clk 0:02:57.5]} 2...
e6 {[%clk 0:03:01.1]} 3. Nc3 {[%clk 0:02:56.8]} 3... Bb4 {[%clk 0:03:01.6]} 4.
Nf3 {[%clk 0:02:58.3]} 4... b6 {[%clk 0:03:01.5]} 5. e3 {[%clk 0:02:52.8]} 5...
Bb7 {[%clk 0:03:01.4]} 6. Bd3 {[%clk 0:02:52.5]} 6... O-O {[%clk 0:03:02.1]} 7.
O-O {[%clk 0:02:52.1]} 7... c5 {[%clk 0:03:03.7]} 8. Na4 {[%clk 0:02:50.9]} 8...
cxd4 {[%clk 0:03:04.8]} 9. a3 {[%clk 0:02:47.9]} 9... Bd6 {[%clk 0:03:03.9]} 10.
Nxd4 {[%clk 0:02:32.4]} 10... Nc6 {[%clk 0:03:01.6]} 11. Nc3 {[%clk 0:02:21.4]}
11... Be5 {[%clk 0:02:51.2]} 12. Be2 {[%clk 0:02:15.5]} 12... d5 {[%clk
0:02:46.2]} 13. Bf3 {[%clk 0:02:04.6]} 13... Bxd4 {[%clk 0:02:45.1]} 14. exd4
{[%clk 0:02:00.2]} 14... dxc4 {[%clk 0:02:46.4]} 15. Be3 {[%clk 0:01:59.9]}
15... Nd5 {[%clk 0:02:46]} 16. Qa4 {[%clk 0:01:44.3]} 16... Na5 {[%clk
0:02:39.5]} 17. Rad1 {[%clk 0:01:35.9]} 17... Nxc3 {[%clk 0:02:37.1]} 18. bxc3
{[%clk 0:01:33.4]} 18... Bxf3 {[%clk 0:02:38.6]} 19. gxf3 {[%clk 0:01:34.3]}
19... Qd5 {[%clk 0:02:40.1]} 20. Kg2 {[%clk 0:01:32]} 20... Nb3 {[%clk
0:02:37.3]} 21. Bf4 {[%clk 0:01:21.3]} 21... a5 {[%clk 0:02:28.8]} 0-1

[Event "*** Qualifier 1: Titled Tuesday 3|2 Blitz"]
[Site "Chess.com"]
[Date "2017.04.04"]
[Round "8"]
[White "indfraeng"]
[Black "AmazingAtlas"]
[Result "0-1"]
[WhiteElo "1764"]
[BlackElo "2259"]
[TimeControl "180+2"]
[EndTime "14:48:12 PDT"]
[Termination "AmazingAtlas won by resignation"]

1. d4 {[%clk 0:03:02]} 1... Nf6 {[%clk 0:02:59.7]} 2. c4 {[%clk 0:03:02.2]} 2...
g6 {[%clk 0:03:00.2]} 3. Nc3 {[%clk 0:02:56.1]} 3... Bg7 {[%clk 0:03:01.2]} 4.
e4 {[%clk 0:02:57.1]} 4... d6 {[%clk 0:03:03.1]} 5. f3 {[%clk 0:02:58.4]} 5...
O-O {[%clk 0:03:03.8]} 6. Be3 {[%clk 0:02:58.8]} 6... c5 {[%clk 0:03:05.4]} 7.
Nge2 {[%clk 0:02:59.9]} 7... Qa5 {[%clk 0:03:02.7]} 8. d5 {[%clk 0:02:36.6]}
8... e6 {[%clk 0:02:59.5]} 9. Qd2 {[%clk 0:02:34.1]} 9... exd5 {[%clk
0:02:59.1]} 10. cxd5 {[%clk 0:02:36]} 10... b5 {[%clk 0:02:58.6]} 11. e5 {[%clk
0:02:21.1]} 11... b4 {[%clk 0:02:49.9]} 12. exf6 {[%clk 0:02:18.2]} 12... bxc3
{[%clk 0:02:50.9]} 13. Qxc3 {[%clk 0:02:19.2]} 13... Qxc3+ {[%clk 0:02:52.4]}
14. Nxc3 {[%clk 0:02:21.1]} 14... Bxf6 {[%clk 0:02:53.9]} 15. Bf4 {[%clk
0:02:13.8]} 15... Re8+ {[%clk 0:02:51.1]} 16. Kf2 {[%clk 0:02:13.9]} 16... Bd4+
{[%clk 0:02:51.1]} 17. Kg3 {[%clk 0:02:13.2]} 17... Na6 {[%clk 0:02:31.2]} 18.
Bb5 {[%clk 0:02:03.6]} 18... Rd8 {[%clk 0:02:28.2]} 19. Ne4 {[%clk 0:02:01.2]}
19... Nc7 {[%clk 0:02:26.4]} 20. Bc6 {[%clk 0:02:00.9]} 20... Rb8 {[%clk
0:02:25.1]} 21. Bxd6 {[%clk 0:02:00.6]} 21... Rxd6 {[%clk 0:02:23.9]} 22. Nxd6
{[%clk 0:02:00.6]} 22... Be5+ {[%clk 0:02:25.8]} 23. f4 {[%clk 0:02:00.6]} 23...
Bxd6 {[%clk 0:02:27.7]} 24. Rab1 {[%clk 0:02:00.7]} 24... Rb4 {[%clk 0:02:27.7]}
25. Rhf1 {[%clk 0:01:59]} 25... Bf5 {[%clk 0:02:29.2]} 26. Rbe1 {[%clk 0:01:57]}
26... Rxb2 {[%clk 0:02:28.2]} 27. a4 {[%clk 0:01:55.3]} 27... g5 {[%clk
0:02:26.1]} 28. Rf2 {[%clk 0:01:43.4]} 28... gxf4+ {[%clk 0:02:20.4]} 29. Kf3
{[%clk 0:01:44]} 29... Bg4+ {[%clk 0:02:17.1]} 30. Kxg4 {[%clk 0:01:43.5]} 30...
Rxf2 {[%clk 0:02:18.3]} 0-1

[Event "*** Qualifier 1: Titled Tuesday 3|2 Blitz"]
[Site "Chess.com"]
[Date "2017.04.04"]
[Round "8"]
[White "FairChess_on_YouTube"]
[Black "Buffy7"]
[Result "1-0"]
[WhiteElo "2721"]
[BlackElo "2535"]
[TimeControl "180+2"]
[EndTime "14:48:15 PDT"]
[Termination "FairChess_on_YouTube won by resignation"]

1. Nf3 {[%clk 0:03:02]} 1... Nf6 {[%clk 0:03:00.3]} 2. c4 {[%clk 0:03:02.5]}
2... g6 {[%clk 0:03:00]} 3. Nc3 {[%clk 0:03:03.3]} 3... Bg7 {[%clk 0:03:01.5]}
4. e4 {[%clk 0:03:03.7]} 4... d6 {[%clk 0:03:03.1]} 5. d4 {[%clk 0:03:04.7]}
5... O-O {[%clk 0:03:04.7]} 6. h3 {[%clk 0:03:06.1]} 6... e5 {[%clk 0:03:02.2]}
7. d5 {[%clk 0:03:06.8]} 7... Nh5 {[%clk 0:03:02.1]} 8. g3 {[%clk 0:03:07.5]}
8... Na6 {[%clk 0:02:31]} 9. Nh4 {[%clk 0:03:00.2]} 9... Nc5 {[%clk 0:02:14.2]}
10. b4 {[%clk 0:03:00.6]} 10... Nd7 {[%clk 0:02:12.2]} 11. Be3 {[%clk
0:02:56.6]} 11... a5 {[%clk 0:02:11.5]} 12. b5 {[%clk 0:02:55]} 12... Nc5 {[%clk
0:02:04.7]} 13. Rc1 {[%clk 0:02:52.1]} 13... Bf6 {[%clk 0:02:00.8]} 14. Nf3
{[%clk 0:02:46.9]} 14... Bg7 {[%clk 0:01:58.7]} 15. Nd2 {[%clk 0:02:45.8]} 15...
Qf6 {[%clk 0:01:40.3]} 16. Be2 {[%clk 0:02:41.9]} 16... a4 {[%clk 0:01:32.9]}
17. h4 {[%clk 0:02:31.1]} 17... Qe7 {[%clk 0:01:22.6]} 18. Bxc5 {[%clk
0:02:31.9]} 18... dxc5 {[%clk 0:01:23.1]} 19. Bxh5 {[%clk 0:02:32.8]} 19... gxh5
{[%clk 0:01:24.7]} 20. Qxh5 {[%clk 0:02:33.2]} 20... f5 {[%clk 0:01:26.4]} 21.
Qg5 {[%clk 0:02:24]} 21... Qd6 {[%clk 0:01:27.5]} 22. exf5 {[%clk 0:02:15.2]}
22... Rxf5 {[%clk 0:01:29.4]} 23. Nce4 {[%clk 0:02:11.6]} 23... Qf8 {[%clk
0:01:15]} 24. Qe3 {[%clk 0:02:11.6]} 24... Rf3 {[%clk 0:01:08.6]} 25. Nxf3
{[%clk 0:02:11]} 1-0

[Event "*** Qualifier 1: Titled Tuesday 3|2 Blitz"]
[Site "Chess.com"]
[Date "2017.04.04"]
[Round "8"]
[White "scrapnel"]
[Black "Quiet_Desperation"]
[Result "1-0"]
[WhiteElo "2296"]
[BlackElo "2106"]
[TimeControl "180+2"]
[EndTime "14:48:37 PDT"]
[Termination "scrapnel won by resignation"]

1. Nf3 {[%clk 0:03:00.7]} 1... d5 {[%clk 0:02:57.3]} 2. d4 {[%clk 0:03:00.8]}
2... c5 {[%clk 0:02:50.1]} 3. c4 {[%clk 0:02:58]} 3... e6 {[%clk 0:02:47.1]} 4.
cxd5 {[%clk 0:02:58.1]} 4... exd5 {[%clk 0:02:39.4]} 5. Nc3 {[%clk 0:02:57.4]}
5... Nf6 {[%clk 0:02:32.8]} 6. Bg5 {[%clk 0:02:56.6]} 6... Be6 {[%clk
0:02:30.6]} 7. Bxf6 {[%clk 0:02:52.2]} 7... Qxf6 {[%clk 0:02:27]} 8. e4 {[%clk
0:02:53.3]} 8... dxe4 {[%clk 0:02:19.4]} 9. Nxe4 {[%clk 0:02:45.9]} 9... Qg6
{[%clk 0:02:03.9]} 10. Bb5+ {[%clk 0:02:12.4]} 10... Bd7 {[%clk 0:01:56.3]} 11.
Qe2 {[%clk 0:02:02.6]} 11... Bxb5 {[%clk 0:01:44]} 12. Nd6+ {[%clk 0:01:44.7]}
12... Kd8 {[%clk 0:01:38.3]} 13. Nxb5 {[%clk 0:01:42.6]} 13... Nc6 {[%clk
0:01:13.9]} 14. O-O-O {[%clk 0:01:12.8]} 14... Kc8 {[%clk 0:00:50.5]} 1-0

[Event "*** Qualifier 1: Titled Tuesday 3|2 Blitz"]
[Site "Chess.com"]
[Date "2017.04.04"]
[Round "8"]
[White "BogdanDeac"]
[Black "Grebeniuk-S"]
[Result "1-0"]
[WhiteElo "2355"]
[BlackElo "2396"]
[TimeControl "180+2"]
[EndTime "14:49:53 PDT"]
[Termination "BogdanDeac won by resignation"]

1. e4 {[%clk 0:03:02]} 1... d5 {[%clk 0:03:01.1]} 2. exd5 {[%clk 0:03:02.6]}
2... Qxd5 {[%clk 0:03:03]} 3. Nc3 {[%clk 0:03:04.1]} 3... Qa5 {[%clk 0:03:04.6]}
4. d4 {[%clk 0:03:05.4]} 4... Nf6 {[%clk 0:03:06.2]} 5. Bc4 {[%clk 0:03:06.4]}
5... Bf5 {[%clk 0:03:06.5]} 6. Qe2 {[%clk 0:03:03.9]} 6... c6 {[%clk 0:02:55.7]}
7. Nf3 {[%clk 0:03:03.1]} 7... Nbd7 {[%clk 0:02:55.6]} 8. Bd2 {[%clk 0:03:03.7]}
8... e6 {[%clk 0:02:56.1]} 9. O-O-O {[%clk 0:03:02.9]} 9... Bb4 {[%clk
0:02:56.4]} 10. Bb3 {[%clk 0:03:00.9]} 10... O-O-O {[%clk 0:02:40.5]} 11. a3
{[%clk 0:03:00.6]} 11... Bxc3 {[%clk 0:02:40.8]} 12. Bxc3 {[%clk 0:03:00.5]}
12... Qc7 {[%clk 0:02:42.7]} 13. Ne5 {[%clk 0:02:58.3]} 13... Nxe5 {[%clk
0:02:43.2]} 14. dxe5 {[%clk 0:02:59.2]} 14... Nd5 {[%clk 0:02:45.1]} 15. Bd2
{[%clk 0:02:59.6]} 15... h5 {[%clk 0:02:40.7]} 16. f3 {[%clk 0:02:53.1]} 16...
Bg6 {[%clk 0:02:27.6]} 17. Bg5 {[%clk 0:02:50.8]} 17... Rd7 {[%clk 0:02:17.1]}
18. g3 {[%clk 0:02:51]} 18... b5 {[%clk 0:02:09.7]} 19. f4 {[%clk 0:02:45.6]}
19... Bf5 {[%clk 0:02:08]} 20. h3 {[%clk 0:02:45.7]} 20... Nb6 {[%clk
0:01:23.1]} 21. g4 {[%clk 0:02:44.1]} 21... Bg6 {[%clk 0:01:21.1]} 22. f5 {[%clk
0:02:43.9]} 22... Rxd1+ {[%clk 0:01:18.7]} 23. Rxd1 {[%clk 0:02:42.2]} 23...
exf5 {[%clk 0:01:20.6]} 24. e6 {[%clk 0:02:41.9]} 24... hxg4 {[%clk 0:01:06.5]}
25. hxg4 {[%clk 0:02:41.5]} 25... Nd5 {[%clk 0:00:59]} 26. e7 {[%clk 0:02:09.5]}
26... fxg4 {[%clk 0:00:46.8]} 27. e8=Q+ {[%clk 0:02:07.2]} 27... Rxe8 {[%clk
0:00:44.6]} 28. Qxe8+ {[%clk 0:02:06.8]} 28... Kb7 {[%clk 0:00:46.2]} 29. Rxd5
{[%clk 0:01:51.3]} 29... cxd5 {[%clk 0:00:48.1]} 30. Qxb5+ {[%clk 0:01:51.5]}
30... Kc8 {[%clk 0:00:41.7]} 31. Qe8+ {[%clk 0:01:52.1]} 31... Kb7 {[%clk
0:00:42.3]} 32. Bxd5+ {[%clk 0:01:53]} 32... Ka6 {[%clk 0:00:39.6]} 33. Qa4+
{[%clk 0:01:51.5]} 33... Qa5 {[%clk 0:00:36.5]} 34. Bc4+ {[%clk 0:01:51.5]}
34... Kb6 {[%clk 0:00:37.1]} 35. Bd8+ {[%clk 0:01:51.4]} 1-0

[Event "*** Qualifier 1: Titled Tuesday 3|2 Blitz"]
[Site "Chess.com"]
[Date "2017.04.04"]
[Round "8"]
[White "PowerThinking2650"]
[Black "FLchessplayer"]
[Result "1-0"]
[WhiteElo "2191"]
[BlackElo "2037"]
[TimeControl "180+2"]
[EndTime "14:50:00 PDT"]
[Termination "PowerThinking2650 won by resignation"]

1. e4 {[%clk 0:03:02]} 1... c5 {[%clk 0:03:00.2]} 2. Nf3 {[%clk 0:03:02.6]} 2...
d6 {[%clk 0:03:01.3]} 3. d4 {[%clk 0:03:04.4]} 3... cxd4 {[%clk 0:03:02.1]} 4.
Nxd4 {[%clk 0:03:06.3]} 4... Nf6 {[%clk 0:03:03.3]} 5. Nc3 {[%clk 0:03:04]} 5...
a6 {[%clk 0:03:04.1]} 6. Be3 {[%clk 0:03:03.5]} 6... e6 {[%clk 0:03:03.6]} 7. f3
{[%clk 0:02:56.7]} 7... Qc7 {[%clk 0:03:01.1]} 8. Qd2 {[%clk 0:02:54.9]} 8...
Nbd7 {[%clk 0:02:59.4]} 9. g4 {[%clk 0:02:55.7]} 9... Ne5 {[%clk 0:03:00.1]} 10.
g5 {[%clk 0:02:55.1]} 10... Nfd7 {[%clk 0:03:01.1]} 11. O-O-O {[%clk 0:02:45.8]}
11... Nb6 {[%clk 0:03:01.4]} 12. f4 {[%clk 0:02:30]} 12... Nec4 {[%clk
0:03:01.2]} 13. Bxc4 {[%clk 0:02:28.5]} 13... Nxc4 {[%clk 0:03:02]} 14. Qd3
{[%clk 0:02:30.1]} 14... Nxe3 {[%clk 0:03:03]} 15. Qxe3 {[%clk 0:02:31.3]} 15...
Be7 {[%clk 0:02:54.1]} 16. f5 {[%clk 0:02:04.6]} 16... Bd7 {[%clk 0:02:52.6]}
17. h4 {[%clk 0:01:43.3]} 17... O-O-O {[%clk 0:01:26.5]} 18. Rhf1 {[%clk
0:01:27.8]} 18... Rhf8 {[%clk 0:01:25.3]} 19. f6 {[%clk 0:01:28.4]} 19... gxf6
{[%clk 0:01:20.3]} 20. gxf6 {[%clk 0:01:29.6]} 20... Bxf6 {[%clk 0:01:21]} 21.
Rxf6 {[%clk 0:01:29.8]} 21... Qc5 {[%clk 0:01:18.1]} 22. Qg5 {[%clk 0:01:22.3]}
22... e5 {[%clk 0:01:15.3]} 23. Nf5 {[%clk 0:01:20.3]} 23... Be6 {[%clk
0:01:10.8]} 24. Ne7+ {[%clk 0:01:12.7]} 24... Kb8 {[%clk 0:01:11.7]} 25. Ned5
{[%clk 0:01:09.4]} 25... Rc8 {[%clk 0:01:09.5]} 26. a3 {[%clk 0:01:07]} 26... b5
{[%clk 0:01:09.5]} 27. Qg1 {[%clk 0:01:02.1]} 27... Qc4 {[%clk 0:01:04.5]} 28.
Qb6+ {[%clk 0:01:01.5]} 28... Ka8 {[%clk 0:01:04.6]} 29. Qxa6+ {[%clk
0:01:02.5]} 29... Kb8 {[%clk 0:01:05.6]} 30. Qxb5+ {[%clk 0:00:53.8]} 1-0

[Event "*** Qualifier 1: Titled Tuesday 3|2 Blitz"]
[Site "Chess.com"]
[Date "2017.04.04"]
[Round "8"]
[White "CalinGheorghiu"]
[Black "MorpheusPro"]
[Result "0-1"]
[WhiteElo "2227"]
[BlackElo "2108"]
[TimeControl "180+2"]
[EndTime "14:50:11 PDT"]
[Termination "MorpheusPro won by resignation"]

1. d4 {[%clk 0:03:02]} 1... d5 {[%clk 0:03:00.2]} 2. c4 {[%clk 0:02:58.9]} 2...
c6 {[%clk 0:02:58]} 3. Nc3 {[%clk 0:02:48.5]} 3... Nf6 {[%clk 0:02:58.4]} 4. e3
{[%clk 0:02:49.1]} 4... a6 {[%clk 0:02:56.9]} 5. Nf3 {[%clk 0:02:47.9]} 5... Bf5
{[%clk 0:02:56.6]} 6. Be2 {[%clk 0:02:47.9]} 6... e6 {[%clk 0:02:56.9]} 7. O-O
{[%clk 0:02:48.6]} 7... Nbd7 {[%clk 0:02:56.8]} 8. Nh4 {[%clk 0:02:49]} 8... Bg6
{[%clk 0:02:57.1]} 9. b3 {[%clk 0:02:44.1]} 9... Bd6 {[%clk 0:02:53.3]} 10. f4
{[%clk 0:02:35.1]} 10... Ne4 {[%clk 0:02:37.9]} 11. Nxe4 {[%clk 0:02:26.8]}
11... Bxe4 {[%clk 0:02:36.4]} 12. Qe1 {[%clk 0:02:25]} 12... g5 {[%clk
0:02:21.5]} 13. Nf3 {[%clk 0:02:19.9]} 13... g4 {[%clk 0:02:16.1]} 14. Ne5
{[%clk 0:02:14]} 14... f5 {[%clk 0:02:09.8]} 15. c5 {[%clk 0:01:50.8]} 15...
Bxe5 {[%clk 0:01:54.6]} 16. fxe5 {[%clk 0:01:45.8]} 16... h5 {[%clk 0:01:51]}
17. b4 {[%clk 0:01:33.3]} 17... Nf8 {[%clk 0:01:46.9]} 18. a4 {[%clk 0:01:29.7]}
18... Ng6 {[%clk 0:01:47.2]} 19. Ra3 {[%clk 0:01:25.2]} 19... h4 {[%clk
0:01:43.1]} 20. b5 {[%clk 0:01:10.8]} 20... axb5 {[%clk 0:01:43.1]} 21. axb5
{[%clk 0:01:10.4]} 21... Rxa3 {[%clk 0:01:43.5]} 22. Bxa3 {[%clk 0:01:09.6]}
22... Qg5 {[%clk 0:01:40.6]} 23. Qa5 {[%clk 0:00:34.9]} 23... Qxe3+ {[%clk
0:01:36.6]} 24. Kh1 {[%clk 0:00:34.6]} 24... Qxe2 {[%clk 0:01:26.1]} 25. Qa8+
{[%clk 0:00:33.3]} 25... Kf7 {[%clk 0:01:26.2]} 26. Qxb7+ {[%clk 0:00:35.2]}
26... Ne7 {[%clk 0:01:25.9]} 0-1